[Event "24th Hoogeschool Zeeland 2022"]
[Site "Vlissingen"]
[Date "2022.08.07"]
[Round "3.1"]
[White "Lammens, Tim"]
[Black "Ponomariov, Ruslan"]
[Result "0-1"]
[ECO "A11"]
[WhiteElo "2255"]
[BlackElo "2642"]
[Annotator "TA"]
[PlyCount "106"]
[EventDate "2022.08.05"]
[EventType "swiss"]
[EventCountry "NED"]
[SourceTitle "playchess.com"]
[Source "ChessBase"]
[SourceQuality "1"]
[TimeControl "40/5400+30:1800+30"]

{[%evp 11,105,8,9,11,15,12,21,27,33,16,22,20,25,22,33,16,24,8,45,42,52,0,0,0,60,56,83,85,83,4,5,-39,-39,-133,-9,-20,17,0,0,-21,0,0,0,0,0,0,0,0,0,0,0,-55,-55,-55,-55,-56,-18,-52,-8,-8,-8,-8,-8,-8,-8,-8,-8,-8,-8,-739,-739,-739,0,-731,-731,-717,-710,-709,-709,-691,-628,-580,-580,-840,-790,-29973,-29973,-29973,-29975,-29970,-29972,-29979,-29980,-29989,-29990,-29999]} 1. Nf3 {[%emt 0:00:02]} d5 {[%emt 0:00:21]} 2. g3 {[%emt 0:00:06]} Bf5 {[%emt 0:00:35]} 3. Bg2 {[%emt 0:00:06]} e6 {[%emt 0:00:25]} 4. O-O {[%emt 0:01:22]} c6 {[%emt 0:00:45]} 5. c4 {[%emt 0:00:54]} Nf6 {[%emt 0:04:50]} 6. Qb3 {[%emt 0:00:39]} Qb6 {[%emt 0:05:06]} 7. d3 {[%emt 0:00:13] A11: English Opening: 1...c6.} Nbd7 {[%emt 0:02:25]} 8. cxd5 {[%emt 0:00:18]} Qxb3 {[%emt 0:05:36] is cutting edge theory.} 9. axb3 {[%emt 0:00:06] The position is equal.} exd5 {[%emt 0:00:10]} 10. Bd2 {[%emt 0:01:02]} Nc5 $5 {[%emt 0:05:53][%mdl 4] Leaves trodden paths.} 11. Nd4 {[%emt 0:00:26][%cal Bf3d4,Bd4b3,Bb3d4][%mdl 32] aiming for b4.} Bd7 {[%emt 0:00:13]} 12. b4 {[%emt 0:05:43]} Ne6 {[%emt 0:00:43]} 13. Nb3 {[%emt 0:04:30] [#]} h5 $146 {[%emt 0:03:27]} ({Predecessor:} 13... Be7 14. Bc3 O-O 15. N1d2 a6 16. Nf3 Rad8 17. Rfc1 Ne8 18. Nfd4 Nxd4 19. Nxd4 Nd6 {½-½ (57) Giri,A (2798)-Tomashevsky,E (2728) Wijk aan Zee 2016}) 14. e4 {[%emt 0:08:47]} dxe4 {[%emt 0:01:53]} 15. dxe4 {[%emt 0:00:06]} h4 {[%emt 0:00:17]} 16. b5 {[%emt 0:09:27]} (16. Rd1 $14) 16... hxg3 {[%emt 0:01:26]} 17. hxg3 {[%emt 0:00:05]} Nc5 {[%emt 0:19:52]} (17... cxb5 $11 18. Nc3 (18. e5 Ng4 $11) 18... Bc6) 18. Nd4 $1 $14 {[%emt 0:04:58]} Nd3 {[%emt 0:01:33]} 19. bxc6 {[%emt 0:04:50]} bxc6 {[%emt 0:00:22]} 20. Nc3 {[%emt 0:09:09]} (20. Bc3 $16) 20... Ng4 $11 {[%emt 0:05:29]} 21. e5 {[%emt 0:22:50]} Bc5 {[%emt 0:01:59]} (21... Ngxe5 22. Ne4 $11) 22. Be3 {[%emt 0:12:50] [#]} ({White should try} 22. Nce2 $1 $15) 22... Nxe3 {[%emt 0:12:43]} (22... Ngxe5 23. Na4 $14) (22... Nxb2 23. Ne4 Nxe3 24. fxe3 $16) (22... Ndxe5 $6 23. Na4 Nxe3 24. fxe3 $15) (22... Ndxf2 $1 $17 {[%mdl 512]} 23. Rxf2 Nxe3) 23. fxe3 {[%emt 0:00:05]} Rh5 {[%emt 0:02:39]} 24. e6 {[%emt 0:08:22]} fxe6 {[%emt 0:00:11]} 25. Ne4 {[%emt 0:01:08]} Ke7 {[%emt 0:10:28]} 26. Ra5 {[%emt 0:02:05]} Bxd4 {[%emt 0:03:12] The board is on fire.} 27. Rxh5 {[%emt 0:00:02]} Bxe3+ {[%emt 0:00:05]} 28. Kh2 {[%emt 0:00:23] And now Rf3 would win.} Nxb2 {[%emt 0:00:41]} 29. Nc5 {[%emt 0:02:17]} a5 {[%emt 0:02:59]} 30. Nxd7 {[%emt 0:01:32]} Kxd7 {[%emt 0:00:01]} 31. Rf7+ {[%emt 0:00:11]} ({White should play} 31. Re1 $11 Bd4 32. Bh3) 31... Kd6 $15 {[%emt 0:00:05]} 32. Rxg7 {[%emt 0:00:15]} a4 {[%emt 0:00:06] Strongly threatening ...a3.} 33. Rg6 $1 {[%emt 0:01:16][%cal Og2c6]} a3 {[%emt 0:01:26] White must now prevent ...a2.} 34. Bh3 {[%emt 0:00:43]} a2 {[%emt 0:00:29]} (34... Re8 $5 {[%cal Rb2c4]} 35. Ra5 Nc4 $15) 35. Rxe6+ {[%emt 0:00:06]} Kc7 {[%emt 0:00:05]} 36. Bg2 $1 {[%emt 0:00:26] [#]} a1=Q $1 {[%emt 0:03:09]} 37. Rxc6+ {[%emt 0:00:22]} Kd8 {[%emt 0:00:35]} 38. Rh8+ {[%emt 0:00:22]} Ke7 {[%emt 0:00:04]} 39. Rh7+ {[%emt 0:00:48]} Kf8 {[%emt 0:01:20]} 40. Rh8+ $2 {[%emt 0:00:15][%mdl 8192]} (40. Rcc7 $11 Nd3 41. Rhf7+ Kg8 42. Bd5 Qa2+ 43. Bxa2 Rxa2+ 44. Kh3) 40... Kg7 $19 {[%emt 0:01:32]} 41. Rxa8 {[%emt 0:30:12] [#]} Qg1+ $1 {[%emt 0:30:08]} (41... Bg1+ 42. Kh3 Qb1 43. Rc7+ Kf6 44. Ra6+ Ke5 45. Ra5+ Kd6 46. Rc6+ Kd7 47. Rd5+ Ke8 48. Rc8+ Kf7 49. Rc7+ Kg6 50. Rc6+ (50. Kg4 Kf6 $11) 50... Kf7 51. Rc7+ Kg6 52. Rc6+ (52. Kg4 Kf6 $11) 52... Kf7 53. Rc7+ $18) 42. Kh3 {[%emt 0:00:04] Hoping for Rb8.} Nd3 {[%emt 0:00:31]} 43. Rc7+ {[%emt 0:01:49]} Kf6 {[%emt 0:00:56]} 44. Ra6+ {[%emt 0:00:00]} Ke5 {[%emt 0:00:00]} 45. Re7+ {[%emt 0:00:00]} Kd4 {[%emt 0:00:00]} 46. Rd7+ {[%emt 0:00:00]} Kc4 {[%emt 0:00:00]} 47. Rc6+ {[%emt 0:00:00]} Bc5 {[%emt 0:00:00] ( -> ...Nf2+)} 48. Rd5 {[%emt 0:00:00]} Nf2+ {[%emt 0:00:00] Black mates.} 49. Kh4 {[%emt 0:00:00]} Qh2+ {[%emt 0:00:00]} 50. Kg5 {[%emt 0:00:00]} Qxg3+ {[%emt 0:00:00]} 51. Kf5 {[%emt 0:00:12]} Nd3 {[%emt 0:00:00]} 52. Rg6 {[%emt 0:02:20]} Qf2+ {[%emt 0:00:00]} 53. Ke4 {[%emt 0:01:41]} Qf4# {[%emt 0:00:00] Weighted Error Value: White=0.43/Black=0.11 (very precise)} 0-1

[Event "24th Hoogeschool Zeeland 2022"]
[Site "Vlissingen"]
[Date "2022.08.07"]
[Round "3.2"]
[White "Van den Doel, Erik"]
[Black "Ollenberger, Roland"]
[Result "1-0"]
[ECO "B07"]
[WhiteElo "2589"]
[BlackElo "2264"]
[Annotator "TA"]
[PlyCount "93"]
[EventDate "2022.08.05"]
[EventType "swiss"]
[EventCountry "NED"]
[SourceTitle "playchess.com"]
[Source "ChessBase"]
[SourceQuality "1"]
[TimeControl "40/5400+30:1800+30"]

{[%evp 9,93,20,37,15,49,44,67,72,70,83,72,35,106,59,52,67,87,47,40,47,55,59,57,41,50,0,8,12,10,2,9,11,16,16,16,15,24,11,15,17,16,23,43,6,20,32,64,59,68,67,89,89,85,85,85,71,625,673,949,616,1035,1207,1443,942,29971,29971,1649,1223,29973,29974,29965,29975,29975,29976,29976,29977,29976,29976,29977,29978,29978,29979,29979,29980,29965,5114]} 1. d4 {[%emt 0:05:04]} g6 {[%emt 0:00:09]} 2. e4 {[%emt 0:00:39]} Bg7 {[%emt 0:00:07]} 3. Nc3 {[%emt 0:01:13]} d6 {[%emt 0:00:41]} 4. Be3 {[%emt 0:01:10]} Nf6 {[%emt 0:00:18]} 5. h3 {[%emt 0:05:24]} Nbd7 {[%emt 0:06:16]} 6. Nf3 {[%emt 0:03:48] B07: Pirc Defence: Miscellaneous Systems.} c6 {[%emt 0:01:23]} 7. e5 {[%emt 0:01:32]} Ng8 {[%emt 0:06:11][%cal Rd6e5]} 8. Bf4 {[%emt 0:08:38] White is slightly better.} dxe5 {[%emt 0:05:11]} 9. dxe5 {[%emt 0:00:27]} Qa5 {[%emt 0:00:17][%cal Rd7e5]} 10. Qd4 {[%emt 0:21:38] Black must now prevent 0-0-0.} (10. Qe2 $5 {[%cal Re1c1]}) 10... Qb6 {[%emt 0:08:06]} (10... e6 $14) 11. O-O-O {[%emt 0:02:12][%cal Ba1d1,Bd1d4,Bd4c4][%mdl 32] 0x0.001b83af8cd3dp-1022s more active pieces.} (11. Qd2 $1 $16) 11... Qxd4 $14 {[%emt 0:00:28]} 12. Rxd4 {[%emt 0:00:50]} Nc5 {[%emt 0:11:32] [#]} 13. Rc4 $146 {[%emt 0:05:34]} (13. Bc4 {is more complex.} Nh6 14. Rhd1 O-O 15. Rd8) ({Predecessor:} 13. Rd1 Bh6 14. Bg5 Be6 15. Bxh6 Nxh6 16. Ng5 Bd7 17. g4 O-O-O 18. Bc4 f6 19. b4 {0-1 (64) Tosic,V-Stojic,S (2090) Serbia 2007}) 13... Ne6 {[%emt 0:04:48]} 14. Be3 {[%emt 0:01:27]} Bd7 {[%emt 0:05:22]} 15. Ra4 {[%emt 0:04:06]} Bh6 {[%emt 0:03:54]} 16. Bxh6 {[%emt 0:06:13]} Nxh6 {[%emt 0:00:08]} 17. Nd4 {[%emt 0:00:33]} (17. Ra3 $14) 17... Nxd4 {[%emt 0:04:14]} 18. Rxd4 {[%emt 0:00:35]} Nf5 {[%emt 0:00:16]} 19. Rd2 {[%emt 0:02:09]} O-O-O {[%emt 0:02:46]} 20. Bc4 {[%emt 0:00:53]} Rhf8 {[%emt 0:10:31][%cal Bh8f8,Bf8d8,Bd8d5][%mdl 32]} 21. Ne4 {[%emt 0:00:54]} Ng7 {[%emt 0:07:27]} 22. Ng5 {[%emt 0:06:15][%csl LRf7,LRh7]} Be6 {[%emt 0:00:21]} 23. Rxd8+ {[%emt 0:02:01]} Rxd8 {[%emt 0:00:35]} 24. Bxe6+ {[%emt 0:03:39]} Nxe6 {[%emt 0:00:18]} 25. Nxe6 {[%emt 0:00:12]} fxe6 $11 {[%emt 0:00:12][%mdl 4096] Endgame KR-KR} 26. Re1 {[%emt 0:00:08]} Rd5 {[%emt 0:00:40]} 27. Re4 {[%emt 0:00:13]} Kc7 {[%emt 0:05:05]} 28. c4 {[%emt 0:01:21]} Rd8 {[%emt 0:00:10]} 29. Rf4 {[%emt 0:00:53]} Kd7 {[%emt 0:02:32]} 30. Rd4+ {[%emt 0:03:24]} Kc7 {[%emt 0:00:09]} 31. Rxd8 {[%emt 0:00:04]} Kxd8 $16 {[%emt 0:00:04] KP-KP} 32. Kd2 {[%emt 0:00:03] Ke3 is the strong threat.} Ke8 $2 {[%emt 0:03:30][%mdl 8192] [#] This costs Black the game.} (32... Kc7 $16) 33. Ke3 $1 $18 {[%emt 0:00:04]} Kf7 {[%emt 0:04:35] [#]} 34. Kf4 $1 {[%emt 0:00:30]} Kf8 {[%emt 0:01:30]} 35. Kg5 {[%emt 0:00:23]} Kg7 {[%emt 0:00:21]} 36. c5 {[%emt 0:00:48]} Kf7 {[%emt 0:01:51]} 37. Kh6 {[%emt 0:06:50]} Kg8 {[%emt 0:00:05]} 38. h4 {[%emt 0:00:37] White threatens a4 and mate.} Kh8 {[%emt 0:02:26]} 39. a4 {[%emt 0:01:39][%cal Ba2a4,Ba4a5][%mdl 32] White mates.} Kg8 {[%emt 0:00:26]} 40. a5 {[%emt 0:00:27]} Kh8 {[%emt 0:01:05]} 41. h5 {[%emt 0:31:35]} gxh5 {[%emt 0:30:44]} 42. Kxh5 {[%emt 0:00:33]} Kg7 {[%emt 0:04:07]} 43. Kg5 {[%emt 0:00:18]} Kh8 {[%emt 0:00:00]} 44. Kh6 {[%emt 0:00:00]} Kg8 {[%emt 0:00:00]} 45. f4 {[%emt 0:00:00]} Kh8 {[%emt 0:00:00]} 46. g4 {[%emt 0:00:00]} Kg8 {[%emt 0:00:00]} 47. f5 {[%emt 0:00:00] Weighted Error Value: White=0.07 (flawless) /Black=0.66} (47. b3 $142 Kh8 48. f5 Kg8 49. fxe6 Kh8 50. g5 Kg8 51. g6 hxg6 52. Kxg6) 1-0

[Event "24th Hoogeschool Zeeland 2022"]
[Site "Vlissingen"]
[Date "2022.08.07"]
[Round "3.3"]
[White "Grutter, Tim"]
[Black "Baklan, Vladimir"]
[Result "1/2-1/2"]
[ECO "C03"]
[WhiteElo "2246"]
[BlackElo "2589"]
[Annotator "TA"]
[PlyCount "55"]
[EventDate "2022.08.05"]
[EventType "swiss"]
[EventCountry "NED"]
[SourceTitle "playchess.com"]
[Source "ChessBase"]
[SourceQuality "1"]
[TimeControl "40/5400+30:1800+30"]

{[%evp 9,55,7,11,8,9,0,28,23,0,18,29,0,0,0,0,0,23,9,34,0,56,54,55,0,13,0,0,0,0,0,38,27,47,40,47,46,48,48,38,10,12,12,20,14,32,32,32,30]} 1. e4 {[%emt 0:00:03]} e6 {[%emt 0:00:04]} 2. d4 {[%emt 0:00:06]} d5 {[%emt 0:00:02]} 3. Nd2 {[%emt 0:00:04]} Be7 {[%emt 0:00:07]} 4. exd5 {[%emt 0:00:11]} exd5 {[%emt 0:00:19]} 5. Bd3 {[%emt 0:00:12]} Nf6 {[%emt 0:05:02]} 6. h3 {[%emt 0:02:06] C03: French Tarrasch: Unusual Black 3rd moves.} O-O {[%emt 0:00:43]} 7. Ngf3 {[%emt 0:00:46]} c5 {[%emt 0:05:05]} 8. dxc5 {[%emt 0:01:02] White has an edge.} Bxc5 {[%emt 0:00:39]} 9. O-O {[%emt 0:00:30]} Bb6 {[%emt 0:09:34]} 10. Nb3 {[%emt 0:03:55]} Ne4 {[%emt 0:01:45]} 11. Nbd4 {[%emt 0:07:41]} Nc6 {[%emt 0:01:44]} 12. c3 {[%emt 0:02:01]} f5 {[%emt 0:04:21]} 13. Bf4 {[%emt 0:09:18] [#]} g5 $146 {[%emt 0:09:45]} ({Predecessor:} 13... h6 14. Qc2 Qf6 15. Rad1 Be6 16. Nxe6 Qxe6 17. c4 Kh8 18. cxd5 Qxd5 19. Bc4 Qa5 {0-1 (48) Muratovic,A (2476)-Simic,D (2333) Vrnjacka Banja 2007}) 14. Bh2 {[%emt 0:30:39]} g4 {[%emt 0:17:48]} (14... Re8 $11) 15. hxg4 $14 {[%emt 0:04:25]} fxg4 {[%emt 0:00:25]} 16. Nxc6 {[%emt 0:01:50]} (16. Bxe4 {feels hotter.} dxe4 17. Qb3+ Kg7 18. Nd2) 16... bxc6 {[%emt 0:06:37]} 17. Bxe4 {[%emt 0:00:32]} dxe4 {[%emt 0:00:07]} 18. Qxd8 {[%emt 0:00:54]} Rxd8 {[%emt 0:02:02]} 19. Nd4 {[%emt 0:09:31]} Bd7 {[%emt 0:09:54]} 20. Rfe1 {[%emt 0:02:40]} Re8 {[%emt 0:04:39]} 21. Rad1 {[%emt 0:01:53]} Rad8 {[%emt 0:00:10]} 22. Bf4 {[%emt 0:01:30]} Kf7 {[%emt 0:06:30]} 23. Bg5 {[%emt 0:01:26]} Rc8 {[%emt 0:00:04]} 24. Nb5 {[%emt 0:02:29]} cxb5 {[%emt 0:01:08]} 25. Rxd7+ {[%emt 0:00:25]} Kg6 {[%emt 0:00:11]} 26. Be3 {[%emt 0:00:24]} Re6 {[%emt 0:00:20] Against Rd6} 27. Bxb6 {[%emt 0:03:47]} axb6 {[%emt 0:00:04]} 28. Rd4 {[%emt 0:02:18] Weighted Error Value: White=0.09 (flawless) /Black=0.15 (very precise)} 1/2-1/2

[Event "24th Hoogeschool Zeeland 2022"]
[Site "Vlissingen"]
[Date "2022.08.07"]
[Round "3.4"]
[White "Harsha Bharathakoti"]
[Black "Van Baar, Esper"]
[Result "1-0"]
[ECO "B92"]
[WhiteElo "2547"]
[BlackElo "2281"]
[Annotator "TA"]
[PlyCount "47"]
[EventDate "2022.08.05"]
[EventType "swiss"]
[EventCountry "NED"]
[SourceTitle "playchess.com"]
[Source "ChessBase"]
[SourceQuality "1"]
[TimeControl "40/5400+30:1800+30"]

{[%evp 20,47,0,0,19,25,32,20,60,47,96,95,169,156,302,308,305,308,271,243,391,384,364,377,1181,1185,1579,1593,29987,29986]} 1. e4 {[%emt 0:03:34]} c5 {[%emt 0:00:03]} 2. Nf3 {[%emt 0:01:10][%cal Bg1f3,Bf3d4,Bd4b3,Bb3a5,Ba5c6][%mdl 32]} d6 {[%emt 0:00:07]} 3. d4 {[%emt 0:00:58]} cxd4 {[%emt 0:00:06]} 4. Nxd4 {[%emt 0:00:03]} Nf6 {[%emt 0:00:06]} 5. Nc3 {[%emt 0:00:08]} a6 {[%emt 0:00:06]} 6. Be2 {[%emt 0:00:04]} e5 {[%emt 0:00:34]} 7. Nb3 {[%emt 0:00:05]} Be6 {[%emt 0:02:16]} 8. Be3 {[%emt 0:00:08]} Be7 {[%emt 0:03:50]} 9. Nd5 {[%emt 0:00:15]} Nxd5 {[%emt 0:03:31]} 10. exd5 {[%emt 0:01:46]} Bf5 {[%emt 0:00:50]} 11. Qd2 $1 {[%emt 0:00:08] 11.Qd2 is better than 11.0-0.} Nd7 {[%emt 0:05:31] B92: Sicilian Najdorf: 6 Be2.} 12. Na5 {[%emt 0:06:56]} Qc7 {[%emt 0:05:25]} 13. c4 {[%emt 0:00:53]} b6 {[%emt 0:17:15] The position is equal.} 14. Nc6 {[%emt 0:00:34] [#]} a5 $146 {[%emt 0:02:15]} (14... Bf6 $14) ({Predecessor:} 14... Nc5 15. f3 O-O 16. b4 Nb7 17. Nxe7+ Qxe7 18. Bxb6 e4 19. fxe4 Bxe4 20. O-O Rac8 {1-0 (34) Lopez del Alamo,A (2242)-Remolar Gallen,J (2308) Chess.com INT 2022}) 15. O-O $16 {[%emt 0:36:14][%cal Bh1f1,Bf1f4,Bf4f6][%mdl 32] 0x0.0016818f0ea5dp-1022s more active pieces. The black rooks are badly placed.} Nc5 {[%emt 0:05:46]} (15... Bf6 $16) 16. f4 $18 {[%emt 0:05:01]} exf4 {[%emt 0:03:04]} (16... e4 $16 17. Bd4 O-O) 17. Rxf4 {[%emt 0:06:59]} Bg6 {[%emt 0:01:10]} 18. h4 {[%emt 0:06:00]} h5 {[%emt 0:03:33]} 19. Bxc5 {[%emt 0:02:32]} bxc5 {[%emt 0:03:35]} (19... dxc5 {was necessary.} 20. Nxe7 Qxe7) 20. Re1 {[%emt 0:00:53]} O-O {[%emt 0:05:28]} 21. Bxh5 {[%emt 0:04:30]} Bf6 {[%emt 0:00:30] [#]} (21... Bd8) 22. Rxf6 $1 {[%emt 0:00:19][%mdl 512]} Bxh5 {[%emt 0:07:24]} (22... gxf6 23. Bxg6) 23. Ne7+ {[%emt 0:00:13]} Kh7 {[%emt 0:00:14]} 24. Qg5 {[%emt 0:00:50] Black did not feel at home in the position after the opening.  Weighted Error Value: White=0.02 (flawless) /Black=0.89} 1-0

[Event "24th Hoogeschool Zeeland 2022"]
[Site "Vlissingen"]
[Date "2022.08.07"]
[Round "3.5"]
[White "Lefebvre, Herve"]
[Black "Lalith Babu M R"]
[Result "0-1"]
[ECO "C45"]
[WhiteElo "2212"]
[BlackElo "2549"]
[Annotator "TA"]
[PlyCount "68"]
[EventDate "2022.08.05"]
[EventType "swiss"]
[EventCountry "NED"]
[SourceTitle "playchess.com"]
[Source "ChessBase"]
[SourceQuality "1"]
[TimeControl "40/5400+30:1800+30"]

{[%evp 16,68,6,5,25,6,16,0,2,0,1,0,74,41,59,39,37,0,0,0,0,0,0,0,0,0,0,0,0,0,0,0,0,-73,-75,-73,-88,-80,-83,-95,-85,-85,-96,-96,-79,-197,-189,-216,-205,-360,-344,-379,-370,-384,-369]} 1. e4 {[%emt 0:00:03]} e5 {[%emt 0:03:17]} 2. Nf3 {[%emt 0:00:22]} Nc6 {[%emt 0:00:05]} 3. d4 {[%emt 0:10:04]} exd4 {[%emt 0:00:06]} 4. Nxd4 {[%emt 0:00:03]} Nf6 {[%emt 0:00:14]} 5. Nxc6 {[%emt 0:00:06]} bxc6 {[%emt 0:00:07]} 6. e5 {[%emt 0:00:04]} Qe7 {[%emt 0:00:17]} 7. Qe2 {[%emt 0:00:04]} Nd5 {[%emt 0:00:05]} 8. c4 {[%emt 0:00:03]} Nb6 {[%emt 0:00:15]} 9. Nc3 {[%emt 0:00:04]} Bb7 {[%emt 0:00:58] C45: Scotch Game.} 10. Bf4 {[%emt 0:13:22]} Qe6 {[%emt 0:02:02]} 11. O-O-O {[%emt 0:01:14]} Ba6 {[%emt 0:01:00][%cal Ra6c4] The position is equal.} 12. b3 {[%emt 0:01:01]} Ba3+ {[%emt 0:05:26]} 13. Kc2 {[%emt 0:00:54] [#]} O-O-O $146 {[%emt 0:07:09]} (13... g5 $2 14. Bxg5 Be7 15. Bxe7 Qxe7 16. g3 $18) (13... O-O $11 {keeps the balance.}) ({Predecessor:} 13... O-O 14. Qh5 f5 15. Bd3 Bb4 16. a3 Bc5 17. Rhg1 g6 18. Qe2 Rae8 19. h4 d6 {½-½ (29) Tsirakovsky,S (2215)-Kikot,V (2339) ICCF email 2011}) 14. Qe4 {[%emt 0:01:35]} Bb7 {[%emt 0:02:16]} 15. Be2 {[%emt 0:04:01]} Rde8 {[%emt 0:06:46]} 16. Bf3 {[%emt 0:25:03]} f6 {[%emt 0:01:37][%cal Rf6e5]} 17. Bg3 {[%emt 0:06:35]} fxe5 {[%emt 0:03:51]} 18. Rhe1 $1 {[%emt 0:02:05][%cal Rg3e5]} Qf7 {[%emt 0:08:37]} 19. Bxe5 {[%emt 0:21:09]} Bd6 {[%emt 0:01:06]} 20. Rxd6 {[%emt 0:00:05]} cxd6 {[%emt 0:00:41]} 21. Nb5 $1 {[%emt 0:00:27]} cxb5 {[%emt 0:01:05]} (21... Nxc4 $2 22. bxc4 Qe7 23. Nxd6+ Qxd6 24. Bxd6 $18) 22. Qxb7+ {[%emt 0:00:08]} Kd8 {[%emt 0:00:02]} 23. Qxa7 {[%emt 0:09:32]} Qf5+ {[%emt 0:01:22]} 24. Kc1 {[%emt 0:01:31]} (24. Kc3 $11 Nxc4 25. Qa8+ (25. bxc4 Rxe5 26. Qb8+ Ke7 $17) 25... Ke7 26. Bxd6+ (26. Bxg7+ Kf7 $15) 26... Kxd6 27. Rxe8 b4+ 28. Kxc4 Qf7+ 29. Kxb4 Rxe8 30. Qb7) 24... Rxe5 $17 {[%emt 0:01:05] Chess con chili.} 25. Qxb6+ {[%emt 0:00:06]} Ke7 $1 {[%emt 0:00:02]} 26. Rxe5+ {[%emt 0:01:15]} Qxe5 {[%emt 0:00:05]} 27. Qxb5 {[%emt 0:00:39][%mdl 4096] Endgame [#] KQR-KQB} Qa1+ {[%emt 0:01:56]} 28. Kc2 {[%emt 0:00:17]} Qxa2+ {[%emt 0:00:06]} 29. Kc3 {[%emt 0:00:06]} h6 {[%emt 0:00:59] Prevents Qg5+.} ({Much worse is} 29... Qxf2 $6 30. Qg5+ Ke8 31. Qxg7 Qe3+ 32. Kb4 Qc5+ 33. Kc3 Qe3+ 34. Kb4 Qb6+ 35. Ka4 Qa7+ 36. Kb4 Qc5+ 37. Ka4 $15 (37. Kc3 Qe3+ $15)) 30. Qd5 {[%emt 0:02:55]} (30. Qb6 $17 {is a better defense.}) 30... Qa1+ $19 {[%emt 0:01:39]} ({And not} 30... Qxf2 31. Qe4+ Kf6 32. Qf4+ Ke7 33. Qe4+ Kf6 34. Qf4+ Ke7 35. Qe4+ $11) 31. Kc2 {[%emt 0:00:03]} Rb8 {[%emt 0:00:06] And now ...Qa2+ would win.} 32. c5 $2 {[%emt 0:01:00]} (32. Qd1 Qa3 33. Qb1) 32... Qa2+ {[%emt 0:00:22]} 33. Kc1 {[%emt 0:00:11]} Qa3+ {[%emt 0:00:13]} 34. Kc2 {[%emt 0:00:04] [#] Black must now prevent Qxd6+.} Qxc5+ {[%emt 0:00:04] Weighted Error Value: White=0.20 (precise) /Black=0.06 (flawless)} 0-1

[Event "24th Hoogeschool Zeeland 2022"]
[Site "Vlissingen"]
[Date "2022.08.07"]
[Round "3.6"]
[White "Beerdsen, Thomas"]
[Black "Laux, Dominik"]
[Result "1-0"]
[ECO "B99"]
[WhiteElo "2500"]
[BlackElo "2320"]
[Annotator "TA"]
[PlyCount "53"]
[EventDate "2022.08.05"]
[EventType "swiss"]
[EventCountry "NED"]
[SourceTitle "playchess.com"]
[Source "ChessBase"]
[SourceQuality "1"]
[TimeControl "40/5400+30:1800+30"]

{[%evp 22,53,60,68,48,41,53,45,39,0,0,0,0,-6,114,104,189,145,186,155,192,145,129,124,144,122,129,123,140,134,345,348,416,401]} 1. e4 {[%emt 0:00:04]} c5 {[%emt 0:01:55]} 2. Nf3 {[%emt 0:00:06]} d6 {[%emt 0:00:17]} 3. d4 {[%emt 0:00:05]} cxd4 {[%emt 0:00:25]} 4. Nxd4 {[%emt 0:00:06]} Nf6 {[%emt 0:00:26]} 5. Nc3 {[%emt 0:00:07]} a6 {[%emt 0:00:15]} 6. Bg5 {[%emt 0:00:21]} e6 {[%emt 0:00:52]} 7. f4 {[%emt 0:00:12]} Be7 {[%emt 0:01:05]} 8. Qf3 {[%emt 0:00:23]} Qc7 {[%emt 0:00:46]} 9. O-O-O {[%emt 0:00:19]} Nbd7 {[%emt 0:00:38]} 10. g4 {[%emt 0:01:39][%cal Bg2g4,Bg4g5][%mdl 32]} h6 {[%emt 0:00:55]} 11. Bxf6 {[%emt 0:00:37]} Bxf6 {[%emt 0:00:23]} 12. h4 $1 {[%emt 0:00:32]} Nb6 {[%emt 0:01:22] seems to push 12...Qb6 aside. B99: Sicilian Najdorf: 6 Bg5 e6 7 f4 Be7 8 Qf3 Qc7 9 0-0-0 Nbd7.} 13. g5 {[%emt 0:00:18]} Bxd4 {[%emt 0:00:08]} 14. Rxd4 {[%emt 0:00:07]} Qc5 {[%emt 0:00:49] White is slightly better.} 15. Qf2 {[%emt 0:00:56][%cal Oe4e5] Strongly threatening e5!} hxg5 $1 {[%emt 0:05:11]} 16. e5 {[%emt 0:00:35]} gxf4 {[%emt 0:09:30]} 17. Bd3 {[%emt 0:00:35] [#]} Qxe5 $146 {[%emt 0:17:58]} (17... d5 $1 $11 {remains equal.}) ({Predecessor:} 17... f5 18. exf6 e5 19. fxg7 Rg8 20. Bg6+ Ke7 21. h5 Qxd4 22. Qh4+ Kd7 23. h6 Kc6 {1-0 (34) Hong,A (2504)-Brodsky,D (2496) Saint Louis 2022}) 18. Re1 $16 {[%emt 0:01:53]} Qa5 {[%emt 0:01:58]} (18... Qc5 $2 19. Ne4 Qc7 20. Nxd6+ Ke7 21. Nxf7 $1 $18 {[%mdl 512]}) (18... Qh5 $16 {was necessary.}) 19. Qxf4 $18 {[%emt 0:20:51]} Bd7 {[%emt 0:05:43]} 20. Qxd6 {[%emt 0:03:27] Hoping for Re5.} Rh5 {[%emt 0:07:14] [#] Against Re5} 21. b4 {[%emt 0:06:18] Prevents Qc5.} (21. Rf1 $1 $18 {[%cal Od3g6] aiming for Bg6!} Rh6 22. Re4) 21... Qa3+ $16 {[%emt 0:02:25]} 22. Kd2 {[%emt 0:00:05] White is much more active.} Rc8 {[%emt 0:06:51]} 23. Nb1 $36 {[%emt 0:00:47][%mdl 2048] White is in control.} Qb2 {[%emt 0:00:58][%cal Ob6d5] And now ...Nd5! would win.} 24. Qxb6 {[%emt 0:00:15] Threatens to win with Qd6. Dancing on a razor blade.} Rc6 {[%emt 0:03:38] Against Qd6} 25. Qa7 {[%emt 0:00:11][%cal Oe1e4] Black must now prevent Ree4!} Rhc5 $2 {[%emt 0:00:41]} (25... Bc8 $16 26. a3 Rhc5 27. bxc5 (27. Rd8+ Kxd8 28. bxc5 Ke7 $16) 27... Qxd4) 26. Qb8+ $18 {[%emt 0:07:14]} ({Less strong is} 26. bxc5 Qxd4 27. Qxb7 Qxh4 28. Qb8+ Rc8 $18) ({Worse is} 26. Qxb7 Rxc2+ 27. Ke3 Bc8 $11) 26... Rc8 {[%emt 0:00:53]} 27. Qd6 {[%emt 0:00:20] Weighted Error Value: White=0.07 (flawless) /Black=0.30} 1-0